fUSD/lending_fUSD_20240129
["ID","MTS","AMOUNT","RATE_DAILY","PERIOD"]
[312975125,1706560270602,-500.0,0.00052876,31]
[312975126,1706560270613,-560.49,0.00052876,31]
[312975127,1706560270622,-500.0,0.00052876,31]
[312975128,1706560270633,-1462.48,0.00052876,31]
[312975129,1706560270642,-500.0,0.00052876,31]
[312975130,1706560270652,-1467.78,0.00052876,31]
[312975131,1706560270661,-372.93,0.00052877,30]
[312975132,1706560270670,-150.52477513,0.00052885,60]
[312975133,1706560270680,-154.67281811,0.00052892,60]
[312975134,1706560270690,-153.29755698,0.00052892,60]
[312975135,1706560270699,-500.0,0.00052895,60]
[312975136,1706560270710,-1000.0,0.00052899,120]
[312975137,1706560270719,-486.31705801,0.000529,120]
[312975138,1706560270729,-149999.0,0.000529,30]
[312975139,1706560270738,-44569.57318182,0.000529,30]
[312975140,1706560270748,-4884.00630773,0.000529,30]
[312975141,1706560270758,-5997.96073397,0.000529,30]
[312975142,1706560270767,-1075.75476666,0.000529,30]
[312975143,1706560270777,-149999.0,0.000529,30]
[312975144,1706560270787,-50001.0,0.000529,30]
[312975145,1706560270796,-149999.0,0.000529,30]
[312975146,1706560270807,-149999.0,0.000529,30]
[312975147,1706560270817,-149999.0,0.000529,30]
[312975148,1706560270827,-120001.0,0.000529,30]
[312975149,1706560270838,-500.0,0.000529,30]
[312975150,1706560270848,-149999.0,0.000529,30]
[312975151,1706560270857,-149999.0,0.000529,30]
[312975152,1706560270867,-149999.0,0.000529,30]
[312975153,1706560270877,-120095.60578596,0.000529,30]
[312975154,1706560270886,-200.0,0.000529,20]
[312975155,1706560270896,-2936.13420756,0.000529,2]
[312975156,1706560270906,-2542.0,0.000529,19]
[312975157,1706560270916,-4125.25060198,0.000529,120]
[312975158,1706560270926,-41570.6453712,0.000529,30]
[312975159,1706560270936,-171.30628108,0.00052902,60]
[312975160,1706560270945,-500.0,0.0005294,120]
[312975161,1706560270954,-154.67281811,0.0005297,60]
[312975162,1706560270965,-153.29755698,0.00052976,60]
[312975163,1706560270974,-4092.72,0.0005298,120]
[312975164,1706560270983,-2677.19,0.0005298,120]
[312975165,1706560270993,-2447.0,0.00052981,30]
[312975166,1706560271002,-558.0,0.00052981,30]
[312975167,1706560271013,-200.0,0.00052987,39]
[312975168,1706560271022,-200.0,0.00052987,37]
[312975169,1706560271032,-200.0,0.00052987,41]
[312975170,1706560271042,-322.76605704,0.00052988,120]
[312975171,1706560271051,-4084.0,0.0005299,120]
[312975172,1706560271061,-2677.0,0.0005299,120]
[312975173,1706560271198,-150.0,0.00052992,2]
[312975174,1706560271207,-50000.0,0.00053,43]
[312975175,1706560271217,-564.84487344,0.00053,2]
[312975176,1706560271226,-250.0,0.00053,44]
[312975177,1706560271235,-4124.85491926,0.00053,30]
[312975178,1706560271245,-1000.0,0.00053,120]
[312975179,1706560271254,-500000.0,0.00053,120]
[312975180,1706560271264,-986.33,0.00053,20]
[312975181,1706560271273,-180.0,0.00053,2]
[312975182,1706560271282,-14446.64,0.00053,120]
[312975183,1706560271292,-300.0,0.00053,54]
[312975184,1706560271300,-10000.0,0.00053,120]
[312975185,1706560271309,-10000.0,0.00053,120]
[312975186,1706560271321,-600.0,0.00053,30]
[312975187,1706560271330,-2000.0,0.00053,120]
[312975188,1706560271340,-500.0,0.00053,120]
[312975189,1706560271349,-2015.1896982,0.00053,120]
[312975190,1706560271358,-330.4429,0.00053,60]
[312975191,1706560271368,-310.0,0.00053,120]
[312975192,1706560271378,-3121.62796534,0.00053,120]
[312975193,1706560271387,-50000.0,0.00053,120]
[312975194,1706560271397,-250.0,0.00053,120]
[312975195,1706560271406,-988.33,0.00053,20]
[312975196,1706560271417,-1132.62,0.00053,23]
[312975197,1706560271427,-30000.0,0.00053,120]
[312975198,1706560271437,-1048.38,0.00053,120]
[312975199,1706560271446,-104612.11069501,0.00053,60]
[312975200,1706560271455,-486.29568326,0.00053,30]
[312975201,1706560271465,-1039.0,0.00053,120]
[312975202,1706560271474,-500.0,0.00053,6]
[312975203,1706560271485,-459.09401,0.00053,60]
[312975204,1706560271494,-640.0,0.00053,120]
[312975205,1706560271504,-300.0,0.00053,100]
[312975206,1706560271514,-222.9215131,0.00053,90]
[312975207,1706560271524,-300.0,0.00053,110]
[312975208,1706560271533,-300.0,0.00053,80]
[312975209,1706560271543,-300000.0,0.00053,120]
[312975210,1706560271552,-28500.14752802,0.00053,7]
[312975211,1706560271562,-116911.94435311,0.00053,30]
[312975212,1706560271572,-1878.0,0.00053,120]
[312975213,1706560271581,-1282.0,0.00053,120]
[312975214,1706560271590,-150.0,0.00053,30]
[312975215,1706560271600,-24216.10078082,0.00053,30]
[312975216,1706560271609,-10169.469999,0.00053,60]
[312975217,1706560271619,-5025.42201925,0.00053,30]
[312975218,1706560271628,-7532.84375005,0.00053,60]
[312975219,1706560271637,-3018.71559194,0.00053,30]
[312975220,1706560271647,-2000.0,0.00053,80]
[312975221,1706560271656,-200.0,0.00053,30]
[312975222,1706560271665,-307.50222846,0.00053,30]
[312975223,1706560271675,-1899.08022766,0.00053,60]
[312975224,1706560271685,-10000.0,0.00053,60]
[312975225,1706560271694,-17908.07568592,0.00053,60]
[312975226,1706560271704,-554.64892241,0.00053,60]
[312975227,1706560271714,-5557.73813162,0.00053,60]
[312975228,1706560271724,-1080.26260831,0.00053,60]
[312975229,1706560271734,-5020.95,0.00053,60]
[312975230,1706560271743,-300.0,0.00053,31]
[312975231,1706560271752,-218.49,0.00053,120]
[312975232,1706560271762,-218.49,0.00053,120]
[312975233,1706560271771,-218.49,0.00053,120]
[312975234,1706560271781,-218.49,0.00053,120]
[312975235,1706560271791,-218.49,0.00053,120]
[312975236,1706560271801,-218.49,0.00053,120]
[312975237,1706560271810,-218.49,0.00053,120]
[312975238,1706560271820,-218.49,0.00053,120]
[312975239,1706560271831,-218.49,0.00053,120]
[312975240,1706560271843,-218.49,0.00053,120]
[312975241,1706560271852,-218.49,0.00053,120]
[312975242,1706560271861,-218.49,0.00053,120]
[312975243,1706560271871,-218.49,0.00053,120]
[312975244,1706560271882,-218.49,0.00053,120]
[312975245,1706560271891,-218.49,0.00053,120]
[312975246,1706560271901,-218.49,0.00053,120]
[312975247,1706560271911,-218.49,0.00053,120]
[312975248,1706560271921,-218.49,0.00053,120]
[312975249,1706560271930,-218.49,0.00053,120]
[312975250,1706560271939,-218.49,0.00053,120]
[312975251,1706560271949,-218.49,0.00053,120]
[312975252,1706560271957,-218.49,0.00053,120]
[312975253,1706560271967,-218.49,0.00053,120]
[312975254,1706560271976,-218.49,0.00053,120]
[312975255,1706560271985,-218.49,0.00053,120]
[312975256,1706560271995,-218.49,0.00053,120]
[312975257,1706560272004,-218.49,0.00053,120]
[312975258,1706560272013,-218.49,0.00053,120]
[312975259,1706560272023,-218.49,0.00053,120]
[312975260,1706560272033,-218.49,0.00053,120]
[312975261,1706560272042,-218.49,0.00053,120]
[312975262,1706560272052,-218.49,0.00053,120]
[312975263,1706560272062,-218.49,0.00053,120]
[312975264,1706560272071,-218.49,0.00053,120]
[312975265,1706560272080,-218.49,0.00053,120]
[312975266,1706560272090,-218.49,0.00053,120]
[312975267,1706560272100,-218.49,0.00053,120]
[312975268,1706560272109,-218.49,0.00053,120]
[312975269,1706560272119,-218.49,0.00053,120]
[312975270,1706560272127,-218.49,0.00053,120]
[312975271,1706560272137,-218.49,0.00053,120]
[312975272,1706560272147,-218.49,0.00053,120]
[312975273,1706560272157,-218.49,0.00053,120]
[312975274,1706560272167,-218.49,0.00053,120]
[312975275,1706560272176,-218.49,0.00053,120]
[312975276,1706560272186,-218.49,0.00053,120]
[312975277,1706560272196,-218.49,0.00053,120]
[312975278,1706560272205,-218.49,0.00053,120]
[312975279,1706560272215,-218.49,0.00053,120]
[312975280,1706560272224,-218.49,0.00053,120]
[312975281,1706560272234,-218.49,0.00053,120]
[312975282,1706560272244,-218.49,0.00053,120]
[312975283,1706560272253,-218.49,0.00053,120]
[312975284,1706560272263,-218.49,0.00053,120]
[312975285,1706560272272,-218.49,0.00053,120]
[312975286,1706560272282,-218.49,0.00053,120]
[312975287,1706560272291,-218.49,0.00053,120]
[312975288,1706560272300,-218.49,0.00053,120]
[312975289,1706560272309,-218.49,0.00053,120]
[312975290,1706560272318,-218.49,0.00053,120]
[312975291,1706560272328,-218.49,0.00053,120]
[312975292,1706560272338,-218.49,0.00053,120]
[312975293,1706560272347,-218.49,0.00053,120]
[312975294,1706560272357,-218.49,0.00053,120]
[312975295,1706560272367,-218.49,0.00053,120]
[312975296,1706560272377,-218.49,0.00053,120]
[312975297,1706560272386,-218.49,0.00053,120]
[312975298,1706560272395,-218.49,0.00053,120]
[312975299,1706560272404,-218.49,0.00053,120]
[312975300,1706560272414,-218.49,0.00053,120]
[312975301,1706560272423,-218.49,0.00053,120]
[312975302,1706560272433,-218.49,0.00053,120]
[312975303,1706560272442,-218.49,0.00053,120]
[312975304,1706560272452,-218.49,0.00053,120]
[312975305,1706560272461,-218.49,0.00053,120]
[312975306,1706560272471,-218.49,0.00053,120]
[312975307,1706560272480,-218.49,0.00053,120]
[312975308,1706560272489,-218.49,0.00053,120]
[312975309,1706560272498,-218.49,0.00053,120]
[312975310,1706560272508,-218.49,0.00053,120]
[312975311,1706560272521,-218.49,0.00053,120]
[312975312,1706560272531,-218.49,0.00053,120]
[312975313,1706560272540,-218.49,0.00053,120]
[312975314,1706560272551,-218.49,0.00053,120]
[312975315,1706560272562,-218.49,0.00053,120]
[312975316,1706560272572,-218.49,0.00053,120]
[312975317,1706560272581,-218.49,0.00053,120]
[312975318,1706560272590,-218.49,0.00053,120]
[312975319,1706560272599,-218.49,0.00053,120]
[312975320,1706560272608,-218.49,0.00053,120]
[312975321,1706560272618,-218.49,0.00053,120]
[312975322,1706560272626,-218.49,0.00053,120]
[312975323,1706560272635,-218.49,0.00053,120]
[312975324,1706560272645,-218.49,0.00053,120]
[312975325,1706560272654,-218.49,0.00053,120]
[312975326,1706560272663,-218.49,0.00053,120]
[312975327,1706560272674,-218.49,0.00053,120]
[312975328,1706560272683,-218.49,0.00053,120]
[312975329,1706560272693,-218.49,0.00053,120]
[312975330,1706560272702,-218.49,0.00053,120]
[312975331,1706560272711,-166.53972704,0.00053029,60]
[312975332,1706560272721,-157.47372314,0.00053032,60]
[312975333,1706560272731,-153.29755698,0.00053044,60]
[312975334,1706560272740,-154.67281811,0.00053049,60]
[312975335,1706560272750,-281.0,0.00053051,28]
[312975336,1706560272758,-169.03608846,0.00053063,60]
[312975337,1706560272767,-436.12,0.00053064,30]
[312975338,1706560272777,-153.29755698,0.00053071,60]
[312975339,1706560272786,-157.47372314,0.00053076,60]
[312975340,1706560272795,-154.67281811,0.00053086,60]
[312975341,1706560272804,-316.0,0.0005309,2]
[312975342,1706560272813,-203.0,0.0005309,2]
[312975343,1706560272822,-154.67281811,0.00053097,60]
[312975344,1706560272832,-157.83769784,0.00053097,60]
[312975345,1706560272844,-7292.47268157,0.000531,120]
[312975346,1706560272854,-158.0,0.000531,120]
[312975347,1706560272863,-154.67281811,0.00053109,60]
[312975348,1706560272872,-153.29755698,0.00053122,60]
[312975349,1706560272883,-150.52477513,0.00053124,60]
[312975350,1706560272894,-157.83769784,0.00053131,60]
[312975351,1706560272902,-200.0,0.0005315,31]
[312975352,1706560272913,-802.85,0.0005315,31]
[312975353,1706560272922,-690.05,0.0005315,31]
[312975354,1706560272931,-500.0,0.0005315,7]
[312975355,1706560272940,-612.45,0.0005315,31]
[312975356,1706560272949,-960.0,0.0005315,31]
[312975357,1706560272958,-500.0,0.0005315,2]
[312975358,1706560272968,-500.0,0.0005315,31]
[312975359,1706560272978,-500.0,0.0005315,31]
[312975360,1706560272987,-660.93,0.0005315,31]
[312975361,1706560272996,-500.0,0.0005315,31]
[312975362,1706560273006,-500.0,0.0005315,31]
[312975363,1706560273015,-588.26,0.0005315,31]
[312975364,1706560273024,-326.65034936,0.0005315,31]
[312975365,1706560273033,-500.0,0.0005315,31]
[312975366,1706560273043,-803.89,0.0005315,2]
[312975367,1706560273052,-584.71,0.0005315,31]
[312975368,1706560273062,-518.29,0.0005315,15]
[312975369,1706560273071,-794.24,0.0005315,2]
[312975370,1706560273081,-448.64553271,0.0005315,31]
[312975371,1706560273091,-536.17,0.0005315,31]
[312975372,1706560273100,-500.0,0.0005315,31]
[312975373,1706560273109,-608.92,0.0005315,31]
[312975374,1706560273118,-500.0,0.0005315,31]
[312975375,1706560273127,-500.0,0.0005315,31]
[312975376,1706560273139,-500.0,0.0005315,31]
[312975377,1706560273148,-500.0,0.0005315,31]
[312975378,1706560273158,-500.0,0.0005315,31]
[312975379,1706560273167,-500.0,0.0005315,31]
[312975380,1706560273177,-794.87,0.0005315,31]
[312975381,1706560273186,-500.0,0.0005315,31]
[312975382,1706560273196,-637.14,0.0005315,31]
[312975383,1706560273205,-500.0,0.0005315,31]
[312975384,1706560273216,-500.0,0.0005315,31]
[312975385,1706560273225,-500.0,0.0005315,31]
[312975386,1706560273234,-500.0,0.0005315,31]
[312975387,1706560273242,-150.85752363,0.0005315,31]
[312975388,1706560273252,-500.0,0.0005315,31]
[312975389,1706560273262,-594.66573166,0.0005315,31]
[312975390,1706560273274,-500.0,0.0005315,31]
[312975391,1706560273283,-500.0,0.0005315,31]
[312975392,1706560273292,-527.51,0.0005315,2]
[312975393,1706560273301,-654.97,0.0005315,31]
[312975394,1706560273310,-1071.26,0.0005315,7]
[312975395,1706560273322,-500.0,0.0005315,31]
[312975396,1706560273331,-500.0,0.0005315,31]
[312975397,1706560273341,-1434.64,0.0005315,31]
[312975398,1706560273350,-500.0,0.0005315,31]
[312975399,1706560273359,-1000.0,0.0005315,7]
[312975400,1706560273368,-500.0,0.0005315,31]
[312975401,1706560273377,-613.37,0.0005315,31]
[312975402,1706560273386,-500.0,0.0005315,31]
[312975403,1706560273395,-500.0,0.0005315,2]
[312975404,1706560273405,-1690.03,0.0005315,31]
[312975405,1706560273414,-1985.41,0.0005315,2]
[312975406,1706560273423,-307.76,0.0005315,31]
[312975407,1706560273432,-500.0,0.0005315,2]
[312975408,1706560273441,-500.0,0.0005315,31]
[312975409,1706560273450,-500.0,0.0005315,31]
[312975410,1706560273460,-500.0,0.0005315,31]
[312975411,1706560273470,-500.0,0.0005315,31]
[312975412,1706560273479,-500.0,0.0005315,31]
[312975413,1706560273488,-500.0,0.0005315,31]
[312975414,1706560273497,-500.0,0.0005315,31]
[312975415,1706560273506,-500.0,0.0005315,31]
[312975416,1706560273515,-500.0,0.0005315,31]
[312975417,1706560273524,-500.0,0.0005315,31]
[312975418,1706560273534,-500.0,0.0005315,31]
[312975419,1706560273543,-500.0,0.0005315,31]
[312975420,1706560273552,-500.0,0.0005315,31]
[312975421,1706560273705,-500.0,0.0005315,31]
[312975422,1706560273716,-500.0,0.0005315,31]
[312975423,1706560273725,-929.78,0.0005315,31]
[312975424,1706560273734,-500.0,0.0005315,31]
[312975425,1706560273743,-500.0,0.0005315,31]
[312975426,1706560273752,-500.0,0.0005315,31]
[312975427,1706560273761,-689.25,0.0005315,31]
[312975428,1706560273770,-500.0,0.0005315,31]
[312975429,1706560273779,-500.0,0.0005315,31]
[312975430,1706560273788,-500.0,0.0005315,31]
[312975431,1706560273799,-500.0,0.0005315,31]
[312975432,1706560273808,-1000.0,0.0005315,31]
[312975433,1706560273817,-525.86,0.0005315,31]
[312975434,1706560273826,-500.0,0.0005315,31]
[312975435,1706560273838,-500.0,0.0005315,31]
[312975436,1706560273847,-500.0,0.0005315,31]
[312975437,1706560273857,-508.14,0.0005315,31]
[312975438,1706560273866,-500.0,0.0005315,31]
[312975439,1706560273875,-500.0,0.0005315,31]
[312975440,1706560273884,-703.04,0.0005315,31]
[312975441,1706560273893,-1153.07,0.0005315,31]
[312975442,1706560273902,-733.87,0.0005315,31]
[312975443,1706560273912,-500.0,0.0005315,31]
[312975444,1706560273921,-500.0,0.0005315,2]
[312975445,1706560273931,-550.01128495,0.0005315,31]
[312975446,1706560273940,-500.0,0.0005315,31]
[312975447,1706560273949,-500.0,0.0005315,31]
[312975448,1706560273959,-500.0,0.0005315,31]
[312975449,1706560273969,-443.24592163,0.0005315,31]
[312975450,1706560273978,-542.06,0.0005315,31]
[312975451,1706560273988,-500.0,0.0005315,31]
[312975452,1706560273997,-500.0,0.0005315,31]
[312975453,1706560274008,-500.0,0.0005315,31]
[312975454,1706560274017,-500.0,0.0005315,31]
[312975455,1706560274027,-760.13,0.0005315,31]
[312975456,1706560274037,-500.0,0.0005315,31]
[312975457,1706560274046,-526.06,0.0005315,31]
[312975458,1706560274056,-500.0,0.0005315,31]
[312975459,1706560274064,-500.0,0.0005315,31]
[312975460,1706560274073,-1016.8,0.0005315,31]
[312975461,1706560274083,-4583.74,0.0005315,31]
[312975462,1706560274092,-1755.03,0.0005315,7]
[312975463,1706560274101,-1002.26,0.0005315,31]
[312975464,1706560274110,-4249.45,0.0005315,31]
[312975465,1706560274120,-503.19,0.0005315,31]
[312975466,1706560274130,-10182.67,0.0005315,31]
[312975467,1706560274139,-500.0,0.0005315,31]
[312975468,1706560274148,-1038.15,0.0005315,31]
[312975469,1706560274158,-1871.53,0.0005315,31]
[312975470,1706560274167,-296.97365172,0.0005315,31]
[312975471,1706560274176,-1548.31,0.0005315,31]
[312975472,1706560274185,-500.0,0.0005315,31]
[312975473,1706560274194,-1007.6,0.0005315,31]
[312975474,1706560274203,-500.0,0.0005315,31]
[312975475,1706560274213,-500.0,0.0005315,31]
[312975476,1706560274222,-4198.38,0.0005315,31]
[312975477,1706560274232,-4148.68,0.0005315,5]
[312975478,1706560274241,-500.0,0.0005315,31]
[312975479,1706560274250,-1746.98,0.0005315,31]
[312975480,1706560274259,-569.88,0.0005315,31]
[312975481,1706560274268,-946.79,0.0005315,31]
[312975482,1706560274277,-659.85,0.0005315,31]
[312975483,1706560274287,-500.0,0.0005315,31]
[312975484,1706560274296,-1063.77,0.0005315,31]
[312975485,1706560274305,-7962.11,0.0005315,31]
[312975486,1706560274315,-3153.28,0.0005315,31]
[312975487,1706560274324,-500.0,0.0005315,31]
[312975488,1706560274333,-500.0,0.0005315,31]
[312975489,1706560274342,-500.0,0.0005315,31]
[312975490,1706560274350,-4332.43,0.0005315,31]
[312975491,1706560274360,-1133.9,0.0005315,31]
[312975492,1706560274369,-1617.28,0.0005315,31]
[312975493,1706560274378,-5863.89,0.0005315,31]
[312975494,1706560274388,-500.0,0.0005315,31]
[312975495,1706560274397,-1197.97,0.0005315,31]
[312975496,1706560274406,-1997.59,0.0005315,31]
[312975497,1706560274415,-500.0,0.0005315,7]
[312975498,1706560274425,-1149.94,0.0005315,31]
[312975499,1706560274434,-681.59,0.0005315,31]
[312975500,1706560274443,-500.0,0.0005315,31]
[312975501,1706560274452,-500.0,0.0005315,31]
[312975502,1706560274461,-500.0,0.0005315,31]
[312975503,1706560274472,-1457.36,0.0005315,31]
[312975504,1706560274481,-508.06,0.0005315,31]
[312975505,1706560274490,-500.0,0.0005315,31]
[312975506,1706560274499,-1023.2,0.0005315,31]
[312975507,1706560274508,-1286.28,0.0005315,31]
[312975508,1706560274517,-500.0,0.0005315,7]
[312975509,1706560274527,-574.8912571,0.0005315,31]
[312975510,1706560274536,-507.82,0.0005315,31]
[312975511,1706560274546,-642.3,0.0005315,31]
[312975512,1706560274556,-1436.82,0.0005315,31]
[312975513,1706560274565,-2904.01,0.0005315,5]
[312975514,1706560274574,-500.0,0.0005315,31]
[312975515,1706560274584,-1073.77,0.0005315,31]
[312975516,1706560274593,-500.0,0.0005315,31]
[312975517,1706560274602,-500.0,0.0005315,31]
[312975518,1706560274615,-467.7000224,0.0005315,31]
[312975519,1706560274625,-902.23,0.0005315,31]
[312975520,1706560274634,-500.0,0.0005315,31]
[312975521,1706560274643,-1043.52,0.0005315,31]
[312975522,1706560274652,-2075.54,0.0005315,31]
[312975523,1706560274662,-1153.25,0.0005315,31]
[312975524,1706560274671,-500.0,0.0005315,31]
[312975525,1706560274681,-1170.76,0.0005315,31]
[312975526,1706560274690,-992.98,0.0005315,31]
[312975527,1706560274699,-1219.32,0.0005315,31]
[312975528,1706560274708,-2355.86,0.0005315,31]
[312975529,1706560274718,-1137.14,0.0005315,31]
[312975530,1706560274727,-1856.63,0.0005315,31]
[312975531,1706560274737,-525.44,0.0005315,31]
[312975532,1706560274746,-1046.32,0.0005315,31]
[312975533,1706560274756,-2810.09,0.0005315,31]
[312975534,1706560274765,-4393.08,0.0005315,31]
[312975535,1706560274775,-777.18,0.0005315,31]
[312975536,1706560274785,-500.0,0.0005315,31]
[312975537,1706560274794,-500.0,0.0005315,31]
[312975538,1706560274803,-500.0,0.0005315,31]
[312975539,1706560274812,-543.5,0.0005315,31]
[312975540,1706560274822,-500.0,0.0005315,31]
[312975541,1706560274831,-654.21,0.0005315,31]
[312975542,1706560274843,-1384.66,0.0005315,31]
[312975543,1706560274852,-2160.75,0.0005315,31]
[312975544,1706560274861,-2285.93,0.0005315,7]
[312975545,1706560274871,-745.11,0.0005315,31]
[312975546,1706560274881,-1522.49,0.0005315,31]
[312975547,1706560274890,-1223.13,0.0005315,31]
[312975548,1706560274900,-2278.99,0.0005315,31]
[312975549,1706560274909,-2428.38,0.0005315,31]
[312975550,1706560274919,-2579.65,0.0005315,31]
[312975551,1706560274929,-500.0,0.0005315,31]
[312975552,1706560274938,-1020.99,0.0005315,31]
[312975553,1706560274947,-500.0,0.0005315,31]
[312975554,1706560274957,-636.57,0.0005315,31]
[312975555,1706560274967,-500.0,0.0005315,14]
[312975556,1706560274977,-521.29,0.0005315,31]
[312975557,1706560274986,-818.65,0.0005315,31]
[312975558,1706560274995,-1372.59,0.0005315,31]
[312975559,1706560275005,-500.0,0.0005315,31]
[312975560,1706560275016,-500.0,0.0005315,31]
[312975561,1706560275026,-500.0,0.0005315,31]
[312975562,1706560275035,-500.0,0.0005315,31]
[312975563,1706560275046,-1474.92,0.0005315,31]
[312975564,1706560275055,-529.19,0.0005315,31]
[312975565,1706560275065,-500.0,0.0005315,31]
[312975566,1706560275074,-500.0,0.0005315,31]
[312975567,1706560275084,-4936.79,0.0005315,31]
[312975568,1706560275093,-820.98,0.0005315,31]
[312975569,1706560275103,-500.0,0.0005315,31]
[312975570,1706560275113,-1797.82,0.0005315,31]
[312975571,1706560275122,-1033.55,0.0005315,31]
[312975572,1706560275131,-527.47,0.0005315,31]
[312975573,1706560275141,-1398.26,0.0005315,31]
[312975574,1706560275151,-1095.17,0.0005315,31]
[312975575,1706560275161,-1726.01,0.0005315,31]
[312975576,1706560275171,-1943.7,0.0005315,31]
[312975577,1706560275181,-500.0,0.0005315,31]
[312975578,1706560275191,-500.0,0.0005315,31]
[312975579,1706560275200,-500.0,0.0005315,31]
[312975580,1706560275211,-500.0,0.0005315,31]
[312975581,1706560275221,-558.58,0.0005315,31]
[312975582,1706560275230,-500.0,0.0005315,31]
[312975583,1706560275239,-1144.47,0.0005315,31]
[312975584,1706560275249,-7410.07,0.0005315,31]
[312975585,1706560275260,-500.0,0.0005315,31]
[312975586,1706560275270,-1617.52,0.0005315,31]
[312975587,1706560275282,-500.0,0.0005315,31]
[312975588,1706560275292,-2653.45,0.0005315,31]
[312975589,1706560275302,-500.0,0.0005315,31]
[312975590,1706560275311,-500.0,0.0005315,31]
[312975591,1706560275322,-500.0,0.0005315,31]
[312975592,1706560275331,-10106.11,0.0005315,31]
[312975593,1706560275341,-500.0,0.0005315,31]
[312975594,1706560275350,-500.0,0.0005315,31]
[312975595,1706560275359,-500.0,0.0005315,31]
[312975596,1706560275369,-1502.27,0.0005315,31]
[312975597,1706560275379,-192.29640736,0.0005315,31]
[312975598,1706560275388,-1138.89,0.0005315,31]
[312975599,1706560275398,-642.23,0.0005315,31]
[312975600,1706560275407,-2268.94,0.0005315,31]
[312975601,1706560275416,-724.26,0.0005315,31]
[312975602,1706560275426,-564.2,0.0005315,2]
[312975603,1706560275436,-500.0,0.0005315,31]
[312975604,1706560275445,-1338.16,0.0005315,31]
[312975605,1706560275455,-2909.62,0.0005315,31]
[312975606,1706560275464,-536.92,0.0005315,31]
[312975607,1706560275474,-764.64,0.0005315,2]
[312975608,1706560275484,-846.95,0.0005315,31]
[312975609,1706560275493,-830.73,0.0005315,31]
[312975610,1706560275503,-546.02,0.0005315,31]
[312975611,1706560275513,-1019.65,0.0005315,31]
[312975612,1706560275522,-1849.52,0.0005315,31]
[312975613,1706560275531,-500.0,0.0005315,31]
[312975614,1706560275540,-560.49,0.0005315,31]
[312975615,1706560275550,-500.0,0.0005315,31]
[312975616,1706560275559,-1462.48,0.0005315,31]
[312975617,1706560275568,-500.0,0.0005315,31]
[312975618,1706560275578,-334.12382587,0.00053151,30]
[312975619,1706560275587,-202.0366871,0.00053151,30]
[312975620,1706560275597,-25000.0,0.00053151,30]
[312975621,1706560275606,-25000.0,0.00053151,30]
[312975622,1706560275615,-25000.0,0.00053151,30]
[312975623,1706560275624,-25000.0,0.00053151,30]
[312975624,1706560275633,-25000.0,0.00053151,30]